[Event "57th Biel Festival MTO 2024"]
[White "Rappazzo,Johannes"]
[Black "Gavrilescu,David"]
[Site "Biel"]
[Round "3.25"]
[Annotator "TA"]
[Result "0-1"]
[Date "2024.07.17"]
[WhiteElo "2169"]
[BlackElo "2538"]
[PlyCount "80"]
[TimeControl "60"]

{[%evp 13,80,5,22,0,9,4,9,10,13,0,4,11,3,0,6,2,20,-32,-37,-66,-47,-110,-110,-115,-97,-94,-45,-57,-35,-38,39,36,61,52,66,33,14,-75,-68,-296,-301,-291,-290,-462,-439,-605,-627,-597,-600,-1293,-1283,-29970,-29973,-29973,-29974,-29973,-29974,-29970,-29972,-29962,-29957,-2105,-6417,-5697,-5617,-1531,-799,-5297,-5289]} 1. e4 {[%emt 0:0:3]} c6 {[%emt 0:0:33]} 2. Nc3 {[%emt 0:0:9]} d5 {[%emt 0:0:37]} 3. Nf3 {[%emt 0:0:4]} Bg4 {[%emt 0:0:43]} 4. h3 {[%emt 0:0:12]} Bxf3 {[%emt 0:0:37]} 5. Qxf3 {[%emt 0:0:8]} e6 {[%emt 0:0:39]} 6. g3 {[%emt 0:0:16]} Nf6 {[%emt 0:1:13]} 7. Bg2 {[%emt 0:0:44]} Bb4 {[%emt 0:0:35]} 8. e5 {[%emt 0:14:28]} Nfd7 {[%emt 0:1:1]} 9. Qg4 {[%emt 0:1:42][%csl LRb4,LRg7]} Bf8 {[%emt 0:0:29]} 10. f4 {[%emt 0:1:21] The position is equal.} h5 {[%emt 0:1:31]} 11. Qe2 {[%emt 0:26:31]} c5 {[%emt 0:0:33]} 12. O-O {[%emt 0:2:48]} Nc6 {[%emt 0:1:43]} 13. d3 {[%emt 0:2:31]} Nd4 {[%emt 0:1:31]} 14. Qd1 {[%emt 0:7:38]} Be7 {[%emt 0:0:41]} 15. Nb1 {[%emt 0:3:42]} (15. Ne2 $11 )Qc7 {[%emt 0:8:41]} 16. Be3 {[%emt 0:7:48]} Nf5 {[%emt 0:4:45][%csl LRe3,LRg3]} 17. Bf2 {[%emt 0:0:40]} (17. Qe1 $1 $15 )g5 $17 {[%emt 0:2:19] Black is more active.} 18. c4 {[%emt 0:12:56]} dxc4 {[%emt 0:9:15]} 19. dxc4 {[%emt 0:2:1]} gxf4 {[%emt 0:1:12]} (19... O-O-O $1 $17 {And now ...gxf4 would win.} 20. Qf3 h4 )20. gxf4 $15 {[%emt 0:0:18]} Rg8 {[%emt 0:1:15]} 21. Qf3 {[%emt 0:3:11][%cal Og1h1]} (21. Nc3 $2 Qc6 22. Nd5 Nb6 $19 (22... exd5 $2 23. cxd5 Qg6 24. Qf3 $17 ))Bh4 {[%emt 0:24:49]} (21... Nd4 $15 22. Bxd4 cxd4 )22. Nc3 $14 {[%emt 0:3:54]} a6 {[%emt 0:15:56] Wards off Nb5} 23. Ne4 {[%emt 0:2:13]} Bxf2+ {[%emt 0:4:10]} 24. Qxf2 {[%emt 0:1:9]} O-O-O {[%emt 0:1:2] [#]} 25. b4 {[%emt 0:3:32]} Rg7 {[%emt 0:8:26] ...Rdg8 would now be deadly.} 26. Rab1 $2 {[%emt 0:5:44] White does not recover from this.} ({White should play} 26. Kh2 $15 cxb4 27. Rab1 )Rdg8 $19 {[%emt 0:4:23]} 27. Ng5 {[%emt 0:0:8] [#]} Nxe5 $1 {[%emt 0:1:31]} 28. bxc5 {[%emt 0:4:36]} (28. Qxc5 $142 Ng3 (28... Nxc4 $2 29. Qxc7+ Kxc7 30. Rfc1 $19 )29. Qxc7+ Kxc7 30. Rf2 )Nd3 {[%emt 0:0:30]} (28... Nxc4 $2 29. Rxb7 (29. Bxb7+ Kd8 $16 )Qxb7 30. Bxb7+ Kxb7 31. Rb1+ Kc6 32. Qf3+ Kxc5 33. Rc1 $18 (33. Qxh5 f6 $11 ))29. Qf3 {[%emt 0:2:53]} Nxc5 {[%emt 0:0:8] Excellent horsemanship.} ({And not} 29... Qxc5+ 30. Kh2 f6 31. Rxb7 (31. Qxd3 fxg5 32. Qe4 Re8 $17 )fxg5 32. Rfb1 $11 (32. Rxg7 Rxg7 33. Qxd3 Ne3 $11 ))30. Qc3 {[%emt 0:1:4] Repels f6} Rg6 {[%emt 0:1:53] Hoping for ...f6.} 31. Bxb7+ {[%emt 0:1:2]} Nxb7 {[%emt 0:0:7]} 32. c5 {[%emt 0:0:12]} Rxg5+ {[%emt 0:2:7]} 33. fxg5 {[%emt 0:0:6]} Rxg5+ {[%emt 0:0:4]} 34. Kf2 {[%emt 0:0:13]} Qf4+ {[%emt 0:0:18]} 35. Ke1 {[%emt 0:0:58]} Qe4+ {[%emt 0:0:6]} 36. Kd2 {[%emt 0:0:11]} Rg2+ {[%emt 0:0:9]} 37. Kc1 {[%emt 0:0:16]} Nd4 {[%emt 0:0:4] Black is clearly winning.} 38. Rb2 {[%emt 0:1:11] Repels Rc2+} Ne2+ {[%emt 0:0:55]} ({Weaker is} 38... Rc2+ 39. Rxc2 Nxc2 40. Qxc2 $16 )39. Rxe2 {[%emt 0:0:8]} Rxe2 {[%emt 0:0:6]} 40. Qh8+ {[%emt 0:0:6]} Nd8 {[%emt 0:0:4] Weighted Error Value: White=0.98/Black=0.26 (precise) .  Loses game:     	White=1     	---        Mistake:       	White=4     	Black=2      Inaccurate:     	White=3     	---        OK:         	White=7     	Black=8      Best:        	White=1     	Black=3      Strong:       	---       	Black=1} 0-1

[Event "57th Biel Festival MTO 2024"]
[White "Kamber,Bruno"]
[Black "Ansat,Aldiyar"]
[Site "Biel"]
[Round "3.26"]
[Annotator "TA"]
[Result "0-1"]
[Date "2024.07.17"]
[WhiteElo "2188"]
[BlackElo "2437"]
[PlyCount "118"]
[TimeControl "60"]

{[%evp 17,118,26,14,16,10,0,25,16,14,11,25,24,28,34,34,22,12,10,14,7,16,14,23,8,11,21,40,8,8,8,6,12,24,19,17,-19,-17,-12,0,-65,-64,-65,-66,-60,-64,-97,-97,-97,-97,-108,-108,-133,-133,-241,-241,-241,-241,-234,-234,-291,-291,-291,-133,-291,-291,-291,-291,-259,-230,-406,-206,-206,-126,-4481,-4481,-29973,-29975,-29974,-29975,-29986,-29987,-29986,-4718,-2755,-3912,-29983,-3912,-3100,-843,-843,-843,-843,-843,-843,-843,-843,-843,-29982,-29983,-29984,-29985,-29997,-29998]} 1. e4 {[%emt 0:18:3]} c5 {[%emt 0:6:51]} 2. Nf3 {[%emt 0:0:0]} Nc6 {[%emt 0:0:15]} 3. Bb5 {[%emt 0:0:0]} e6 {[%emt 0:0:17]} 4. O-O {[%emt 0:0:0]} Nge7 {[%emt 0:0:15]} 5. d4 {[%emt 0:0:0]} cxd4 {[%emt 0:0:10]} 6. Nxd4 {[%emt 0:0:0]} Ng6 {[%emt 0:0:26] B30: Sicilian: 2...Nc6 3 Bb5, lines without ...g6.} 7. Be2 {[%emt 0:0:0]} Be7 {[%emt 0:0:9]} 8. Nxc6 $146 {[%emt 0:0:0]} ({Predecessor:} 8. c4 O-O 9. Nc3 b6 10. Be3 Bb7 11. Nb3 Qc7 12. Rc1 Rad8 13. f4 Qb8 14. g3 {0-1 Anand,V (2756)-Gelfand,B (2668) Leon 35th rapid 2022 (2.2)} )bxc6 {[%emt 0:4:50]} 9. c4 {[%emt 0:0:0]} O-O {[%emt 0:4:21]} 10. Nc3 {[%emt 0:0:0]} Rb8 {[%emt 0:12:43]} 11. Rb1 {[%emt 0:0:0]} Bb7 {[%emt 0:20:59]} 12. Be3 {[%emt 0:0:0]} c5 {[%emt 0:0:4]} 13. f4 {[%emt 0:1:57]} f5 {[%emt 0:6:4]} 14. e5 {[%emt 0:4:28]} d6 {[%emt 0:0:7]} 15. exd6 {[%emt 0:0:40]} Bxd6 {[%emt 0:0:4]} 16. Nb5 {[%emt 0:19:31]} Be7 {[%emt 0:0:27]} 17. Qxd8 {[%emt 0:0:52]} Rfxd8 {[%emt 0:0:5]} 18. Rfd1 {[%emt 0:9:7]} a6 {[%emt 0:8:19]} 19. Rxd8+ {[%emt 0:1:11]} Rxd8 {[%emt 0:0:18]} 20. Nc3 {[%emt 0:0:6]} e5 {[%emt 0:10:1]} 21. fxe5 {[%emt 0:7:22]} f4 {[%emt 0:0:2]} 22. Bf2 {[%emt 0:22:23]} Nxe5 {[%emt 0:0:21]} 23. Nd5 {[%emt 0:0:34]} Bxd5 {[%emt 0:0:31]} 24. cxd5 {[%emt 0:0:2]} Rxd5 {[%emt 0:0:12]} 25. Bxa6 {[%emt 0:0:11]} c4 {[%emt 0:0:8]} 26. b3 {[%emt 0:6:34]} c3 {[%emt 0:6:5]} 27. Rc1 {[%emt 0:2:6]} Bb4 {[%emt 0:0:54]} 28. a3 {[%emt 0:10:16]} (28. Be2 $11 )Bxa3 $15 {[%emt 0:0:42]} 29. Rxc3 {[%emt 0:0:8]} Rd1+ {[%emt 0:0:11]} 30. Bf1 {[%emt 0:0:11]} Ng4 {[%emt 0:0:33]} 31. h3 {[%emt 0:1:14]} Ne3 $1 {[%emt 0:0:24]} 32. Rxe3 {[%emt 0:1:35]} (32. Bxe3 fxe3 33. Rc8+ (33. Rxe3 $2 Bc5 $19 )Bf8 $19 )fxe3 {[%emt 0:0:4]} 33. Bxe3 {[%emt 0:0:8]} Bc1 {[%emt 0:4:21]} 34. Bf2 {[%emt 0:4:24]} Bb2 {[%emt 0:2:52]} 35. g3 {[%emt 0:4:12]} (35. Bc5 $17 {was necessary.} )Kf7 $1 $19 {[%emt 0:0:12]} 36. Kg2 {[%emt 0:0:8]} Bd4 $1 {[%emt 0:0:6]} 37. Bxd4 {[%emt 0:0:21]} Rxd4 {[%emt 0:0:4]} 38. h4 {[%emt 0:0:26]} Kf6 {[%emt 0:0:16]} 39. Kf3 {[%emt 0:1:8]} Rd2 {[%emt 0:0:11]} (39... Ke5 $19 {and Black stays clearly on top. White must now prevent ...Rd1.} 40. Ke3 Rg4 )40. Bc4 $2 {[%emt 0:0:16] [#]} (40. Ke4 $17 )Ke5 $1 $19 {[%emt 0:0:15]} 41. Bg8 {[%emt 0:6:24]} h6 {[%emt 0:1:12]} 42. Bc4 {[%emt 0:2:47]} Rc2 {[%emt 0:0:47]} 43. Kg4 $2 {[%emt 0:1:10]} (43. Bf7 )Rc3 {[%emt 0:0:20]} (43... Ke4 $142 {Strongly threatening ...Rc3.} 44. Kh5 Kf3 )44. Bf7 $19 {[%emt 0:0:22]} Ke4 {[%emt 0:0:28]} 45. Bc4 $2 {[%emt 0:9:10][%mdl 8192]} (45. b4 $17 )h5+ $19 {[%emt 0:0:19]} 46. Kxh5 {[%emt 0:10:4]} Rxg3 {[%emt 0:0:5]} 47. b4 {[%emt 0:5:52]} Kf5 {[%emt 0:0:22]} 48. Bf7 {[%emt 0:6:39]} Kf6 {[%emt 0:0:29]} (48... Rg4 49. Be6+ Kxe6 50. Kxg4 Kf6 51. h5 Ke7 52. Kg5 Kf7 53. b5 )49. Be8 {[%emt 0:0:21]} Re3 {[%emt 0:0:29]} (49... g6+ $142 50. Kh6 Rg4 51. h5 g5 (51... Rxb4 52. Bxg6 Rb8 53. Kh7 $11 )52. Kh7 Re4 (52... Rxb4 {leads to mate.} 53. Bc6 Rh4 54. Kh6 g4 55. Bg2 g3 56. Bf3 Rh2 57. Be4 g2 58. Bxg2 Rxg2 59. Kh7 Rf2 60. Kh8 Rh2 61. Kh7 Rxh5+ 62. Kg8 Rh6 63. Kf8 Rh8# )53. Bc6 Rxb4 54. Kg8 Rb8+ 55. Kh7 Rb6 56. Bf3 Rb4 57. Be2 g4 58. Kg8 g3 59. Bf3 Rb8+ 60. Kh7 Rb5 61. h6 Rh5 62. Bxh5 g2 63. Bg6 g1=Q (63... g1=R 64. Be4 $11 )64. Bh5 Qg2 65. Kh8 Qh2 66. Kh7 Qxh5 67. Kg8 Qg6+ 68. Kh8 Qxh6+ 69. Kg8 Qg7# )50. Bc6 $19 {[%emt 0:1:33] [#]} Rc3 $1 {[%emt 0:0:9]} 51. Be4 {[%emt 0:6:29]} Rc4 {[%emt 0:0:49]} (51... Rg3 $142 52. Bc2 g6+ 53. Kh6 Rh3 54. Kh7 Rxh4+ 55. Kg8 Rxb4 56. Bd1 g5 57. Kh8 g4 58. Kg8 g3 59. Bf3 g2 (59... Kg6 {is a self mate.} 60. Kf8 Rf4+ 61. Ke7 Rxf3 62. Kd7 g2 63. Kd6 g1=Q 64. Kd5 Rc3 65. Ke6 Qd4 66. Ke7 Re3+ 67. Kf8 Qh8# )60. Bxg2 Rg4+ 61. Kh8 Rxg2 62. Kh7 Rh2+ 63. Kg8 Rh6 64. Kf8 Rh8# )52. Bd3 {[%emt 0:1:53]} Rxb4 {[%emt 0:0:5]} (52... Rd4 $142 53. Bb1 Rxb4 )53. Bc2 $19 {[%emt 0:0:19]} Rd4 {[%emt 0:0:29]} 54. Bb1 {[%emt 0:0:14]} Rd1 {[%emt 0:0:5]} 55. Bc2 {[%emt 0:0:12]} Rg1 {[%emt 0:0:10]} 56. Bd3 {[%emt 0:0:6]} Ke5 {[%emt 0:0:20]} 57. Bc2 {[%emt 0:3:20]} Kf4 {[%emt 0:0:5]} 58. Bd3 {[%emt 0:1:2]} Rd1 {[%emt 0:0:8]} 59. Bc2 {[%emt 0:0:24]} Rd6 {[%emt 0:0:4]} 0-1

[Event "57th Biel Festival MTO 2024"]
[White "Vincenti,Leonardo"]
[Black "Fromm,Marius"]
[Site "Biel"]
[Round "3.27"]
[Annotator "TA"]
[Result "1/2-1/2"]
[Date "2024.07.17"]
[WhiteElo "2166"]
[BlackElo "2465"]
[PlyCount "71"]
[TimeControl "60"]

{[%evp 24,71,39,37,41,27,16,27,27,12,30,34,41,0,103,100,370,340,345,368,339,200,201,183,218,128,123,127,118,121,124,105,118,133,122,116,157,171,172,156,165,0,146,0,159,152,175,175,144,125]} 1. e4 {[%emt 0:0:3]} c5 {[%emt 0:0:17]} 2. Nf3 {[%emt 0:0:0]} d6 {[%emt 0:0:30]} 3. d4 {[%emt 0:0:27]} cxd4 {[%emt 0:0:0]} 4. Nxd4 {[%emt 0:0:28]} Nf6 {[%emt 0:0:0]} 5. Nc3 {[%emt 0:0:2]} a6 {[%emt 0:0:0]} 6. Bg5 {[%emt 0:0:7]} e6 {[%emt 0:0:41]} 7. f4 {[%emt 0:0:28]} Be7 {[%emt 0:0:34]} 8. Qf3 {[%emt 0:0:22]} Qc7 {[%emt 0:0:32]} 9. O-O-O {[%emt 0:0:0]} Nbd7 {[%emt 0:0:4]} 10. g4 {[%emt 0:5:4][%cal Bg2g4,Bg4g5][%mdl 32]} b5 {[%emt 0:5:0]} 11. Bxf6 {[%emt 0:5:10]} Nxf6 {[%emt 0:5:11]} 12. g5 {[%emt 0:0:0]} Nd7 {[%emt 0:0:5]} 13. f5 {[%emt 0:0:33]} O-O {[%emt 0:0:46] [#] Und ...b4 würde nun gewinnen.} 14. Rg1 {[%emt 0:0:20] f6 ist eine echte Drohung.} b4 $1 15. Nce2 {[%emt 0:0:0] Droht f6 und aus.} e5 $1 {[%emt 0:0:34][%cal Be6e5,Be5d4][%mdl 32] Weiß hat minimalen Vorteil.} 16. f6 $1 {[%emt 0:0:0]} exd4 {[%emt 0:0:6]} 17. fxe7 {[%emt 0:0:2]} Re8 {[%emt 0:0:21]} 18. e5 $36 {[%emt 0:34:49][%mdl 2048] Weiss hat Initiative. Manche mögen's heiß} d5 {[%emt 0:14:51]} (18... Rb8 $11 {bleibt in der Remisbreite.} 19. e6 (19. Nxd4 Nxe5 20. Qg3 Rxe7 $17 )fxe6 )19. Qxd5 $16 {[%emt 0:15:19] Weiß hat aktiveres Spiel. Die schwarzen Türme stehen passiv.} Bb7 {[%emt 0:1:48][%mdl 8192]} (19... Nc5 $16 {war angesagt.} )20. Qd6 $18 {[%emt 0:0:49]} (20. Qxd4 Rac8 21. Qd2 Nxe5 $15 )Rac8 {[%emt 0:9:59][%csl Gc8][%cal Rc7c2]} 21. Nxd4 {[%emt 0:1:55]} (21. Qxb4 $2 Qxc2# )g6 {[%emt 0:11:9]} 22. Qxc7 {[%emt 0:0:39]} ({Weniger gut wäre} 22. Qxb4 Nxe5 23. Qd2 (23. Bh3 Rb8 $14 )Qxe7 $14 )(22. Re1 $142 {Bh3 wäre nun fies.} Qc5 23. Qxd7 Rxe7 24. Qg4 )Rxc7 {[%emt 0:16:0]} 23. e6 {[%emt 0:7:8] Zielt auf Nb5 ab.} Nc5 {[%emt 0:14:38] [#]} 24. Bc4 {[%emt 0:0:19]} (24. exf7+ $1 $18 Kxf7 25. Bc4+ Kg7 26. a3 Rcxe7 27. axb4 )fxe6 {[%emt 0:1:42]} 25. Nxe6 {[%emt 0:0:0]} Nxe6 {[%emt 0:0:0]} 26. Bxe6+ {[%emt 0:0:0]} Kg7 {[%emt 0:8:52]} 27. Bb3 {[%emt 0:0:0]} Rcxe7 {[%emt 0:7:21]} 28. Ba4 {[%emt 0:5:49]} Rf8 {[%emt 0:0:44]} 29. Rge1 {[%emt 0:2:19]} Rxe1 {[%emt 0:0:0]} 30. Rxe1 $16 {[%emt 0:0:37][%mdl 4096] Endspiel. KRB-KRB} Rf7 {[%emt 0:11:8]} 31. Bb3 {[%emt 0:1:51] Verhindert Bd5.} Rd7 {[%emt 0:15:10]} 32. Ba4 {[%emt 0:1:10]} Rf7 {[%emt 0:2:18]} 33. Bb3 {[%emt 0:17:0] Lässt Bd5 nicht zu} Rd7 34. c3 {[%emt 0:3:29] Weiß steht deutlich besser.} bxc3 {[%emt 0:0:21]} 35. bxc3 {[%emt 0:0:25]} h6 {[%emt 0:1:41]} 36. gxh6+ {[%emt 0:0:20] Gewichteter Fehlerwert: Weiß=0.35/Schwarz=0.28 (präzise) .  Verlustzug:     	---       	Schwarz=1     Fehler:       	Weiß=2     	Schwarz=1     Ungenau:       	Weiß=1     	Schwarz=1     OK:         	Weiß=8     	Schwarz=8     Bester:       	Weiß=3     	Schwarz=1     Stark:        	Weiß=1     	Schwarz=2} 1/2-1/2

[Event "57th Biel Festival MTO 2024"]
[White "Saraci,Nderim"]
[Black "Malli,Suvirr"]
[Site "Biel"]
[Round "3.28"]
[Annotator "TA"]
[Result "1-0"]
[Date "2024.07.17"]
[WhiteElo "2449"]
[BlackElo "2147"]
[PlyCount "79"]
[TimeControl "60"]

{[%evp 20,79,0,0,0,0,5,8,2,8,0,5,24,17,67,0,0,-27,-22,-27,0,0,237,237,231,233,228,229,233,241,236,236,238,238,263,254,261,254,287,281,294,289,381,379,418,431,441,451,450,454,498,470,494,446,541,529,547,575,597,587,680,666]} 1. Nf3 {[%emt 0:0:7]} d5 {[%emt 0:0:14]} 2. c4 {[%emt 0:0:38]} c6 {[%emt 0:0:10]} 3. e3 {[%emt 0:2:46]} Nf6 {[%emt 0:0:32]} 4. Nc3 {[%emt 0:0:29]} e6 {[%emt 0:0:15]} 5. d4 {[%emt 0:3:54]} Nbd7 {[%emt 0:1:7]} 6. Qc2 {[%emt 0:8:16]} Bd6 {[%emt 0:0:15]} 7. b3 {[%emt 0:4:17]} O-O {[%emt 0:0:47]} 8. Bb2 {[%emt 0:3:17]} Qe7 {[%emt 0:2:40]} 9. Be2 {[%emt 0:6:22]} b6 {[%emt 0:0:58]} 10. O-O {[%emt 0:3:8]} Bb7 {[%emt 0:0:21]} 11. Rad1 {[%emt 0:1:37]} Rad8 {[%emt 0:2:52]} 12. Bd3 {[%emt 0:10:57]} e5 {[%emt 0:6:15]} 13. dxe5 {[%emt 0:12:47]} Nxe5 {[%emt 0:0:15] The position is equal.} 14. Nxe5 {[%emt 0:0:39]} Qxe5 {[%emt 0:2:7][%csl Gd6][%cal Re5h2]} 15. g3 {[%emt 0:0:16][%cal Oc3d5] Nxd5! is the strong threat.} Qh5 {[%emt 0:8:4]} 16. Be2 {[%emt 0:4:34]} Ng4 {[%emt 0:20:15]} ({Black should try} 16... Qh3 $11 )17. Bxg4 {[%emt 0:6:14]} ({Better is} 17. h4 $1 $14 )Qxg4 $11 {[%emt 0:0:31]} 18. Rd4 {[%emt 0:1:6]} Qf3 {[%emt 0:3:35]} (18... Qc8 {simplifies} 19. Rfd1 Be5 20. R4d2 dxc4 21. bxc4 Rxd2 22. Rxd2 Qe6 )19. cxd5 {[%emt 0:4:22]} cxd5 {[%emt 0:5:10]} 20. Nb5 $40 {[%emt 0:7:11][%cal Ob5d6][%mdl 128] Strongly threatening Nxd6! White attacks.} Bc8 $2 {[%emt 0:23:14] [#] White now steadily converts the win.} (20... Bb8 $11 )21. Rh4 $1 $18 {[%emt 0:4:18][%csl Gh4][%cal Rc2h7]} (21. Nxa7 $2 Bh3 $19 )Qf5 {[%emt 0:1:7]} 22. Qxf5 {[%emt 0:1:1]} Bxf5 {[%emt 0:0:9] [#]} 23. Nxd6 {[%emt 0:0:8]} ({Not} 23. Nxa7 Ra8 24. Nc6 Rxa2 $11 )Rxd6 {[%emt 0:0:42][%cal Bd8d6,Bd6c6,Bc6c2,Bc2b2][%mdl 32]} 24. Ba3 {[%emt 0:0:8]} Rc6 {[%emt 0:0:30]} 25. Bxf8 {[%emt 0:0:11]} Kxf8 {[%emt 0:0:5][%mdl 4096] Endgame. KRR-KRB} 26. Rd4 {[%emt 0:1:39] Repels Bd3} Rc2 {[%emt 0:0:49]} 27. Ra1 {[%emt 0:1:55]} Be4 {[%emt 0:0:25]} 28. Rdd1 {[%emt 0:0:24]} Rb2 {[%emt 0:2:4]} 29. Rdc1 {[%emt 0:1:8]} Bc2 {[%emt 0:0:7]} 30. f3 {[%emt 0:2:21]} Bd3 {[%emt 0:4:24]} 31. Rc7 {[%emt 0:4:19]} Be2 {[%emt 0:1:36]} 32. Rac1 {[%emt 0:0:22]} (32. Rxa7 Bxf3 33. Rc1 g5 $16 )Bxf3 {[%emt 0:1:26] White is clearly winning.} 33. R7c2 {[%emt 0:0:50]} ({Don't do} 33. Rxa7 g5 34. Rcc7 Bh5 $18 )Rxc2 {[%emt 0:0:7]} 34. Rxc2 {[%emt 0:0:2] KR-KB} Ke8 {[%emt 0:0:36]} 35. Rc7 {[%emt 0:0:40]} a6 {[%emt 0:0:46][%cal Ba7a6,Ba6a5][%mdl 32]} 36. Kf2 {[%emt 0:0:37]} Be4 {[%emt 0:0:3]} 37. Ra7 {[%emt 0:2:9]} Bd3 {[%emt 0:0:12]} 38. Ke1 {[%emt 0:0:40]} a5 {[%emt 0:0:21]} 39. Kd2 {[%emt 0:0:14]} Bb1 {[%emt 0:0:5]} 40. a4 {[%emt 0:0:20] Weighted Error Value: White=0.07 (flawless) /Black=0.40.  Loses game:     	---       	Black=1      Mistake:       	White=1     	Black=1      Inaccurate:     	White=1     	Black=2      OK:         	White=18    	Black=8      Best:        	White=2     	---        Strong:       	White=1     	---} 1-0

[Event "57th Biel Festival MTO 2024"]
[White "Chinguun,Sumiya"]
[Black "Vemparala,Nikash"]
[Site "Biel"]
[Round "3.29"]
[Annotator "RC"]
[Result "1/2-1/2"]
[Date "2024.07.17"]
[WhiteElo "2348"]
[BlackElo "2170"]
[PlyCount "101"]
[TimeControl "60"]

1. e4 {[%emt 0:0:7]} e5 {[%emt 0:0:7]} 2. Nf3 {[%emt 0:0:6]} Nc6 {[%emt 0:0:5]} 3. Bc4 {[%emt 0:0:5]} Bc5 {[%emt 0:0:6]} 4. c3 {[%emt 0:0:6]} Nf6 {[%emt 0:0:21]} 5. d3 {[%emt 0:0:5]} O-O {[%emt 0:0:8]} 6. O-O {[%emt 0:0:19]} d6 {[%emt 0:0:10]} 7. Bg5 {[%emt 0:0:43]} h6 {[%emt 0:1:3]} 8. Bh4 {[%emt 0:0:5]} a5 {[%emt 0:1:15]} 9. a4 {[%emt 0:1:0]} Ba7 {[%emt 0:0:42]} 10. Nbd2 {[%emt 0:5:23]} Be6 {[%emt 0:16:40]} 11. Qb3 {[%emt 0:8:33]} Bxc4 {[%emt 0:1:45]} 12. Nxc4 {[%emt 0:0:24]} g5 {[%emt 0:6:53]} 13. Bg3 {[%emt 0:10:38]} Qd7 {[%emt 0:1:32]} 14. Rad1 {[%emt 0:3:11]} Kg7 {[%emt 0:3:30]} 15. Rfe1 {[%emt 0:15:21]} Rfe8 {[%emt 0:12:12]} 16. Qc2 {[%emt 0:12:46]} Qe6 {[%emt 0:3:6]} 17. b3 {[%emt 0:2:28]} Rad8 {[%emt 0:3:15]} 18. d4 {[%emt 0:7:16]} exd4 {[%emt 0:0:35]} 19. Nxd4 {[%emt 0:5:46]} Bxd4 {[%emt 0:3:15]} 20. cxd4 {[%emt 0:0:27]} d5 {[%emt 0:4:35]} 21. Ne5 {[%emt 0:22:9]} dxe4 {[%emt 0:24:17]} 22. Nxc6 {[%emt 0:0:9]} Qxc6 {[%emt 0:0:19]} 23. Qxc6 {[%emt 0:0:6]} bxc6 {[%emt 0:0:2]} 24. Bxc7 {[%emt 0:0:5]} Rd5 {[%emt 0:0:5]} 25. Rc1 {[%emt 0:2:8]} Re6 {[%emt 0:3:26]} 26. Rc4 {[%emt 0:1:0]} Nd7 {[%emt 0:3:36]} 27. h3 {[%emt 0:1:44]} Kh7 {[%emt 0:2:16]} 28. Re3 {[%emt 0:5:37]} c5 {[%emt 0:4:13]} 29. dxc5 {[%emt 0:0:58]} Nxc5 {[%emt 0:0:9]} 30. Bxa5 {[%emt 0:1:38]} Nxb3 {[%emt 0:0:28]} 31. Bb4 {[%emt 0:0:47]} Rd1+ {[%emt 0:2:16]} 32. Re1 {[%emt 0:0:42]} Rxe1+ {[%emt 0:4:25]} 33. Bxe1 {[%emt 0:0:4]} f5 {[%emt 0:0:22]} 34. Kf1 {[%emt 0:0:46]} Rd6 {[%emt 0:0:57]} 35. g4 {[%emt 0:0:56]} Kg6 {[%emt 0:0:24]} 36. Bb4 {[%emt 0:0:34]} Ra6 {[%emt 0:2:30]} 37. Bc3 {[%emt 0:0:28]} Nc1 {[%emt 0:2:55]} 38. Rc7 {[%emt 0:2:7]} fxg4 {[%emt 0:2:22]} 39. hxg4 {[%emt 0:0:5]} h5 {[%emt 0:0:29]} 40. a5 {[%emt 0:2:14]} hxg4 {[%emt 0:3:6]} 41. Rb7 {[%emt 0:50:38]} Nd3 {[%emt 0:1:13]} 42. Rb6+ {[%emt 0:0:0]} Rxb6 {[%emt 0:0:16]} 43. axb6 {[%emt 0:0:0]} Nc5 {[%emt 0:0:5]} 44. Ke2 {[%emt 0:0:0]} Kf5 {[%emt 0:1:50]} 45. Ke3 {[%emt 0:0:0]} Nb7 {[%emt 0:0:22]} 46. Kd4 {[%emt 0:0:0]} Kf4 {[%emt 0:18:15]} 47. Bd2+ {[%emt 0:0:0]} Kf3 {[%emt 0:0:38]} 48. Bxg5 {[%emt 0:0:0]} Kxf2 {[%emt 0:0:33]} 49. Kxe4 {[%emt 0:0:0]} Kg2 {[%emt 0:1:39]} 50. Kf4 {[%emt 0:0:0]} Kh3 {[%emt 0:0:13]} 51. Ke4 {[%emt 0:0:18]} 1/2-1/2

[Event "57th Biel Festival MTO 2024"]
[White "Rosen,Eric"]
[Black "Woong,Zhi Wei William"]
[Site "Biel"]
[Round "3.30"]
[Annotator "RC"]
[Result "1/2-1/2"]
[Date "2024.07.17"]
[WhiteElo "2361"]
[BlackElo "2139"]
[PlyCount "75"]
[TimeControl "60"]

1. e4 {[%emt 0:1:36]} c5 {[%emt 0:1:44]} 2. Nf3 {[%emt 0:0:0]} Nc6 {[%emt 0:0:19]} 3. Bc4 {[%emt 0:0:0]} d6 {[%emt 0:10:6]} 4. O-O {[%emt 0:0:0]} Nf6 {[%emt 0:0:34]} 5. Re1 {[%emt 0:0:4]} g6 {[%emt 0:5:8]} 6. d4 {[%emt 0:9:32]} cxd4 {[%emt 0:0:32]} 7. Nxd4 {[%emt 0:0:9]} Bd7 {[%emt 0:15:22]} 8. Nc3 {[%emt 0:21:38]} Bg7 {[%emt 0:0:54]} 9. Nb3 {[%emt 0:1:46]} O-O {[%emt 0:1:14]} 10. Nd5 {[%emt 0:4:43]} Rc8 {[%emt 0:5:8]} 11. Bf1 {[%emt 0:1:56]} Be6 {[%emt 0:13:14]} 12. c3 {[%emt 0:1:32]} Ne5 {[%emt 0:5:0]} 13. Bg5 {[%emt 0:4:0]} Bxd5 {[%emt 0:3:52]} 14. exd5 {[%emt 0:0:38]} h6 {[%emt 0:1:20]} 15. Be3 {[%emt 0:1:13]} a6 {[%emt 0:7:0]} 16. a4 {[%emt 0:4:49]} Re8 {[%emt 0:5:20]} 17. h3 {[%emt 0:2:50]} Nc4 {[%emt 0:4:33]} 18. Bxc4 {[%emt 0:1:48]} Rxc4 {[%emt 0:0:5]} 19. Qd3 {[%emt 0:0:44]} Rc8 {[%emt 0:1:1]} 20. a5 {[%emt 0:4:7]} Qd7 {[%emt 0:1:28]} 21. c4 {[%emt 0:3:4]} e5 {[%emt 0:7:1]} 22. dxe6 {[%emt 0:2:50]} Qxe6 {[%emt 0:0:19]} 23. Rac1 {[%emt 0:0:41]} Qe4 {[%emt 0:6:8]} 24. Qxd6 {[%emt 0:11:23]} Rxc4 {[%emt 0:1:5]} 25. Nc5 {[%emt 0:1:13]} Rxc1 {[%emt 0:1:2]} 26. Rxc1 {[%emt 0:0:4]} Qb4 {[%emt 0:5:10]} 27. Qb6 {[%emt 0:13:24]} Qxb6 {[%emt 0:1:12]} 28. axb6 {[%emt 0:0:2]} Nd5 {[%emt 0:0:53]} 29. Nxb7 {[%emt 0:0:52]} Rb8 {[%emt 0:2:9]} 30. Na5 {[%emt 0:7:51]} Nxb6 {[%emt 0:0:30]} 31. Rd1 {[%emt 0:2:4]} Na4 {[%emt 0:2:0]} 32. b3 {[%emt 0:1:22]} Rb5 {[%emt 0:0:46]} 33. Rd8+ {[%emt 0:2:31]} Kh7 {[%emt 0:0:7]} 34. bxa4 {[%emt 0:4:25]} Rxa5 {[%emt 0:0:6]} 35. Rd7 {[%emt 0:0:3]} Kg8 {[%emt 0:0:18]} 36. Rd8+ {[%emt 0:0:15]} Kh7 {[%emt 0:0:5]} 37. Rd7 {[%emt 0:0:11]} Kg8 {[%emt 0:0:19]} 38. Rd8+ {[%emt 0:0:13]} 1/2-1/2